bitfinex-derivatives/quotes_SOLF0:USTF0_20260108
["timestamp","ask_amount","ask_price","bid_price","bid_amount"]
[1767899607126,8.32483213,137.96,137.91,1.76113408]
[1767899607729,1.79533213,137.96,137.91,1.76113408]
[1767899608423,8.32433213,137.97,137.91,1.76113408]
[1767899611028,1.79533213,137.97,137.91,1.76113408]
[1767899612433,10.16507808,137.97,137.91,1.76113408]
[1767899615739,8.36974595,137.97,137.91,1.76113408]
[1767899619340,8.36974595,137.97,137.91,8.50935382]
[1767899620842,1.84074595,137.97,137.91,8.50935382]
[1767899624248,1.84074595,137.97,137.92,6.74821974]
[1767899624656,3.63607808,137.99,137.93,8.61158032]
[1767899624846,3.63607808,137.99,137.93,1.86336058]
[1767899625046,1.84074595,137.98,137.93,1.86336058]
[1767899627256,1.84074595,137.98,137.93,8.61158032]
[1767899628557,1.84074595,137.98,137.93,6.74821974]
[1767899633162,3.63607808,137.98,137.93,6.74821974]
[1767899634264,3.63607808,137.98,137.94,6.74821974]
[1767899637661,6.5281,137.99,137.96,6.74821974]
[1767899638969,6.5281,137.99,137.95,6.74821974]
[1767899639170,6.5281,137.99,137.96,6.74821974]
[1767899643166,1.79533213,137.98,137.94,10.88095057]
[1767899644780,3.51581773,137.96,137.9,1.84891704]
[1767899645070,1.79533213,137.94,137.9,1.84891704]
[1767899646471,93.9505856,137.95,137.9,1.84891704]
[1767899648362,8.39715774,137.94,137.88,1.72323864]
[1767899649371,6.5309,137.93,137.88,1.72323864]
[1767899649773,6.5314,137.92,137.88,1.72323864]
[1767899649976,1.86665774,137.93,137.86,12.91157595]
[1767899651667,6.5319,137.91,137.86,12.91157595]
[1767899651972,6.5319,137.91,137.86,14.63481459]
[1767899652274,1.86665774,137.93,137.86,14.63481459]
[1767899652871,87.56665774,137.93,137.86,14.63481459]
[1767899653074,1.86665774,137.91,137.86,12.91157595]
[1767899653267,1.86665774,137.91,137.82,1.72323864]
[1767899653761,1.86665774,137.89,137.82,1.72323864]
[1767899655672,1.86665774,137.89,137.83,1.72323864]
[1767899656470,1.86665774,137.89,137.83,8.25863864]
[1767899657676,1.86665774,137.89,137.81,1.72323864]
[1767899658676,1.86665774,137.89,137.82,8.25903864]
[1767899659379,1.86665774,137.91,137.82,1.72323864]
[1767899659586,87.58665774,137.91,137.82,1.72323864]
[1767899659879,87.58665774,137.91,137.83,1.72323864]
[1767899660072,1.86665774,137.9,137.83,1.72323864]
[1767899665283,8.39895774,137.9,137.83,1.72323864]
[1767899666782,1.86665774,137.89,137.83,1.72323864]
[1767899668580,6.5323,137.9,137.83,1.72323864]
[1767899669188,8.39895774,137.9,137.83,1.72323864]
[1767899672590,8.39895774,137.9,137.84,1.58508794]
[1767899674488,1.86665774,137.9,137.85,1.58508794]
[1767899678092,1.53117799,137.89,137.82,8.12068794]
[1767899678388,1.53117799,137.89,137.82,1.58508794]
[1767899679599,1.53117799,137.88,137.82,1.58508794]
[1767899680999,8.06447799,137.88,137.82,1.58508794]
[1767899682790,1.53117799,137.87,137.8,8.12208794]
[1767899682993,1.53117799,137.87,137.81,1.58508794]
[1767899684091,1.53117799,137.87,137.81,8.12158794]
[1767899691197,1.53117799,137.87,137.82,1.58508794]
[1767899694297,8.06497799,137.87,137.82,1.58508794]
[1767899697203,8.06437799,137.89,137.83,1.58508794]
[1767899697406,1.53117799,137.89,137.83,1.58508794]
[1767899698309,6.5333,137.88,137.83,1.58508794]
[1767899699715,8.06447799,137.88,137.83,1.58508794]
[1767899702113,1.53117799,137.88,137.83,1.58508794]
[1767899702318,1.53117799,137.88,137.79,10.19842097]
[1767899702515,1.15461118,137.86,137.78,8.99842063]
[1767899702813,1.15461118,137.8,137.73,9.05963704]
[1767899703003,1.15461118,137.79,137.7,1.20000034]
[1767899703411,1.15461118,137.79,137.72,7.74080034]
[1767899704826,1.15461118,137.79,137.73,7.74030034]
[1767899705219,1.15461118,137.81,137.74,1.20000034]
[1767899706522,1.15461118,137.81,137.74,7.73980034]
[1767899707229,1.15461118,137.81,137.75,1.12861576]
[1767899708731,2.85865056,137.8,137.74,7.66841576]
[1767899709225,2.85865056,137.8,137.74,1.12861576]
[1767899709432,85.76,137.83,137.72,1.12861576]
[1767899709433,2.85865056,137.78,137.72,1.12861576]
[1767899710020,8.33877027,137.78,137.7,6.5414]
[1767899710221,8.33877027,137.78,137.7,7.67001576]
[1767899710222,1.05788029,137.77,137.7,7.67001576]
[1767899710623,2.85865056,137.76,137.7,7.67001576]
[1767899712328,1.05788029,137.76,137.7,7.67001576]
[1767899715032,1.80077027,137.75,137.7,1.12861576]
[1767899715226,1.05788029,137.76,137.66,1.12861576]
[1767899715227,1.05788029,137.73,137.66,1.12861576]
[1767899715430,2.85865056,137.73,137.66,1.12861576]
[1767899715631,1.05788029,137.72,137.66,1.12861576]
[1767899715822,2.85865056,137.75,137.66,1.12861576]
[1767899716329,1.05788029,137.74,137.66,1.12861576]
[1767899716529,1.05788029,137.74,137.67,6.543]
[1767899716831,1.05788029,137.74,137.65,13.12681455]
[1767899716832,2.85865056,137.71,137.65,13.12681455]
[1767899717527,0.04756188,137.69,137.65,13.12681455]
[1767899721436,1.84833215,137.69,137.65,13.12681455]
[1767899721634,2.90621244,137.69,137.61,1.12861576]
[1767899722041,9.44871244,137.69,137.61,1.12861576]
[1767899722433,9.44871244,137.69,137.62,1.12861576]
[1767899722639,2.90621244,137.69,137.62,1.12861576]
[1767899722831,0.04756188,137.69,137.62,1.12861576]
[1767899723132,0.04756188,137.69,137.64,1.12861576]
[1767899725233,1.05788029,137.68,137.6,1.12861576]
[1767899725432,1.80077027,137.67,137.6,1.12861576]
[1767899725940,1.80077027,137.67,137.61,1.12861576]
[1767899726137,0.05526227,137.65,137.61,1.12861576]
[1767899726341,0.05526227,137.65,137.58,1.12861576]
[1767899726831,9.40195056,137.67,137.59,7.67541576]
[1767899727234,0.05044636,137.63,137.59,7.67541576]
[1767899727635,9.40195056,137.67,137.6,7.67511576]
[1767899727837,9.40195056,137.67,137.6,7.72627403]
[1767899728243,2.85865056,137.67,137.6,7.72627403]
[1767899729035,2.85865056,137.67,137.6,0.05115827]
[1767899729235,1.05788029,137.66,137.6,0.05115827]
[1767899729641,1.80077027,137.65,137.6,0.05115827]
[1767899731746,8.34517027,137.65,137.6,0.05115827]
[1767899732735,1.80077027,137.65,137.6,0.05115827]
[1767899732940,1.80077027,137.65,137.51,101.9003]
[1767899732941,0.88865271,137.62,137.53,0.91235346]
[1767899733241,1.80077027,137.55,137.48,7.46445346]
[1767899733440,88.56942298,137.56,137.48,0.91235346]
[1767899733644,2.68942298,137.56,137.48,0.91235346]
[1767899733847,2.68942298,137.56,137.5,6.5512]
[1767899734048,87.68077027,137.58,137.49,0.91235346]
[1767899734942,88.56942298,137.58,137.49,0.91235346]
[1767899735146,95.11732298,137.58,137.49,0.91235346]
[1767899735741,2.68942298,137.56,137.49,0.91235346]
[1767899736540,9.23812298,137.56,137.49,0.91235346]
[1767899737136,6.5492,137.55,137.49,0.91235346]
[1767899737343,2.68942298,137.56,137.49,0.91235346]
[1767899737842,85.9,137.57,137.49,0.91235346]
[1767899738636,85.9,137.57,137.5,6.5512]
[1767899738836,85.9,137.57,137.49,0.91235346]
[1767899740543,85.9,137.57,137.49,7.46395346]
[1767899741547,86.78865271,137.57,137.49,7.46395346]
[1767899741850,1.80077027,137.54,137.47,0.91235346]
[1767899742051,2.68942298,137.56,137.47,0.91235346]
[1767899742654,1.80077027,137.54,137.45,1.26566165]
[1767899742853,1.80077027,137.52,137.45,0.91235346]
[1767899743454,2.68942298,137.52,137.45,0.91235346]
[1767899743749,0.88865271,137.51,137.42,0.91235346]
[1767899744051,1.80077027,137.5,137.42,0.91235346]
[1767899744250,0.88865271,137.54,137.45,0.91235346]
[1767899744444,88.62942298,137.54,137.45,0.91235346]
[1767899745051,0.88865271,137.54,137.47,0.91235346]
[1767899745844,2.68942298,137.54,137.47,0.91235346]
[1767899746656,2.68942298,137.54,137.47,7.46465346]
[1767899747460,0.88865271,137.54,137.47,7.46465346]
[1767899747759,2.68942298,137.54,137.47,7.46465346]
[1767899747950,2.68942298,137.52,137.46,6.5531]
[1767899748345,2.68942298,137.52,137.44,0.91235346]
[1767899748558,0.04607091,137.5,137.44,0.91235346]
[1767899748951,85.94,137.55,137.46,0.91235346]
[1767899748952,1.80077027,137.54,137.46,0.91235346]
[1767899749356,2.68942298,137.54,137.46,0.91235346]
[1767899750757,2.68942298,137.54,137.48,6.5522]
[1767899754758,0.88865271,137.54,137.49,6.5517]
[1767899756864,92.5085,137.56,137.49,6.5517]
[1767899757063,1.80077027,137.55,137.49,6.5517]
[1767899757766,88.64942298,137.57,137.49,7.46405346]
[1767899758264,0.88865271,137.56,137.49,7.46405346]
[1767899759355,85.96,137.57,137.51,0.91235346]
[1767899759760,88.64942298,137.58,137.51,0.91235346]
[1767899760569,95.19692298,137.58,137.51,0.91235346]
[1767899760960,7.43615271,137.58,137.51,0.91235346]
[1767899761165,93.39615271,137.58,137.51,0.91235346]
[1767899761981,93.39615271,137.58,137.51,7.46315346]
[1767899762271,6.548,137.57,137.51,0.91235346]
[1767899766175,7.23628037,137.56,137.5,6.5512]
[1767899766379,0.68778037,137.56,137.48,0.72208713]
[1767899766682,2.48855064,137.55,137.48,0.72208713]
[1767899768078,94.30917027,137.57,137.5,6.5513]
[1767899768276,94.99695064,137.57,137.5,6.5513]
[1767899768479,93.19618037,137.57,137.5,6.5513]
[1767899769573,7.23628037,137.56,137.5,6.5513]
[1767899769774,0.68778037,137.55,137.48,7.27388713]
[1767899770077,7.23778037,137.53,137.45,86.68208713]
[1767899770378,7.23778037,137.53,137.46,0.72208713]
[1767899770978,7.23778037,137.53,137.46,7.27488713]
[1767899771369,0.68778037,137.53,137.46,0.72208713]
[1767899772178,0.68778037,137.53,137.44,0.72208713]
[1767899772379,0.68778037,137.52,137.44,0.72208713]
[1767899772680,0.68778037,137.52,137.46,6.5532]
[1767899773279,0.68778037,137.52,137.44,0.72208713]
[1767899773475,2.82384696,137.49,137.39,0.72208713]
[1767899773679,0.68778037,137.48,137.39,0.72208713]
[1767899774076,0.68778037,137.48,137.4,6.5556]
[1767899774276,0.68778037,137.46,137.4,6.5556]
[1767899775178,0.68778037,137.46,137.38,7.27868713]
[1767899777078,0.68778037,137.46,137.39,6.5565]
[1767899777278,0.68778037,137.46,137.39,7.27858713]
[1767899777682,0.68778037,137.48,137.41,6.5554]
[1767899778179,0.68778037,137.48,137.4,0.72208713]
[1767899778381,0.68778037,137.46,137.37,0.72208713]
[1767899778782,0.68778037,137.44,137.37,0.72208713]
[1767899779579,0.68778037,137.44,137.37,7.27928713]
[1767899779886,0.68778037,137.44,137.37,0.72208713]
[1767899780187,7.24198037,137.44,137.37,0.72208713]
[1767899780383,0.68778037,137.43,137.37,0.72208713]
[1767899781281,0.68778037,137.43,137.37,7.27948713]
[1767899781986,86.66778037,137.46,137.38,7.27878713]
[1767899782184,0.68778037,137.46,137.38,0.72208713]
[1767899782880,0.68778037,137.46,137.4,6.556]
[1767899784384,0.68778037,137.46,137.4,7.27808713]
[1767899784781,0.68778037,137.46,137.38,7.27908713]
[1767899784988,7.24168037,137.45,137.38,0.72208713]
[1767899785791,6.5543,137.44,137.38,0.72208713]
[1767899786186,7.24158037,137.45,137.38,0.72208713]
[1767899787587,7.24158037,137.45,137.38,7.27898713]
[1767899788994,7.24198037,137.44,137.36,7.27968713]
[1767899790084,0.68778037,137.43,137.36,7.27968713]
[1767899791195,7.24268037,137.43,137.36,7.27968713]
[1767899791496,2.82384696,137.41,137.33,0.72208713]
[1767899791797,0.68778037,137.39,137.31,0.72208713]
[1767899792195,0.68778037,137.39,137.33,6.5594]
[1767899792597,0.56873394,137.42,137.31,0.72208713]
[1767899792799,86.58873394,137.44,137.36,6.5579]
[1767899793095,0.56873394,137.42,137.35,0.59612113]
[1767899793493,0.56873394,137.41,137.33,0.59612113]
[1767899793893,0.56873394,137.38,137.31,86.02]
[1767899794095,0.56873394,137.38,137.3,13.93817427]
[1767899794393,0.56873394,137.38,137.31,0.59612113]
[1767899794897,7.12623394,137.37,137.3,19.90255314]
[1767899795397,6.5591,137.34,137.3,13.34205314]
[1767899795603,0.56873394,137.34,137.3,2.52031343]
[1767899795897,0.56873394,137.37,137.3,3.11643456]
[1767899796204,0.56873394,137.37,137.31,6.5603]
[1767899796499,0.56873394,137.37,137.3,2.52031343]
[1767899797700,0.56873394,137.36,137.3,2.52031343]
[1767899799303,0.56873394,137.36,137.19,0.59612113]
[1767899799304,104.87794696,137.31,137.19,0.59612113]
[1767899799605,86.04,137.3,137.19,0.59612113]
[1767899799912,86.04,137.3,137.2,0.59612113]
[1767899800205,86.04,137.31,137.22,0.59612113]
[1767899800509,102.0143,137.36,137.24,0.59612113]
[1767899800695,102.0025,137.38,137.24,0.59612113]
[1767899800696,104.83174696,137.37,137.24,0.59612113]
[1767899800897,86.04,137.36,137.26,0.59612113]
[1767899803106,6.5579,137.37,137.27,0.59612113]
[1767899803307,86.06,137.35,137.27,0.59612113]
[1767899803704,86.06,137.36,137.28,0.59612113]
[1767899804299,6.5567,137.39,137.28,0.59612113]
[1767899804508,86.06,137.38,137.28,0.59612113]
[1767899805010,6.5567,137.39,137.29,0.59612113]
[1767899805211,86.06,137.38,137.29,0.59612113]
[1767899806211,86.08,137.38,137.29,0.59612113]
[1767899806411,86.08,137.38,137.3,0.59612113]
[1767899807213,86.08,137.38,137.31,0.59612113]
[1767899807411,6.5559,137.41,137.31,0.59612113]
[1767899807613,104.78124696,137.44,137.31,0.59612113]
[1767899807614,104.78124696,137.44,137.32,0.59612113]
[1767899807814,6.5553,137.42,137.32,7.15572113]
[1767899808005,86.08,137.41,137.33,0.59612113]
[1767899808206,0.04728865,137.39,137.37,0.05279839]
[1767899811218,1.50728865,137.39,137.29,0.59612113]
[1767899811414,86.12728865,137.39,137.29,0.59612113]
[1767899811611,6.5572,137.38,137.29,0.59612113]
[1767899811811,6.5572,137.38,137.3,7.15682113]
[1767899812418,92.6372,137.38,137.3,7.15682113]
[1767899814122,6.5564,137.4,137.31,7.15632113]
[1767899814319,86.08,137.38,137.31,7.15632113]
[1767899815524,92.6371,137.38,137.31,7.15632113]
[1767899816221,86.08,137.39,137.32,0.59612113]
[1767899816417,5.57634847,137.38,137.32,0.59612113]
[1767899816618,92.6367,137.39,137.32,0.59612113]
[1767899816819,12.13345472,137.38,137.3,0.59612113]
[1767899817018,6.5571,137.38,137.3,0.59612113]
[1767899818521,5.58091997,137.37,137.3,7.15692113]
[1767899818825,86.08,137.39,137.31,0.59612113]
[1767899819015,5.58097792,137.38,137.31,0.59612113]
[1767899819219,86.08,137.39,137.31,0.59612113]
[1767899819424,5.58277405,137.38,137.31,0.59612113]
[1767899819629,86.08,137.39,137.31,0.59612113]
[1767899819824,5.58281151,137.38,137.31,0.59612113]
[1767899820030,86.08,137.39,137.33,6.5593]
[1767899820225,104.78914696,137.43,137.33,6.5593]
[1767899820422,91.66307081,137.42,137.33,7.15542113]
[1767899820629,91.66307081,137.41,137.33,7.15542113]
[1767899820929,5.58307081,137.4,137.33,7.15542113]
[1767899821328,12.13917081,137.4,137.33,0.59612113]
[1767899821525,5.58307081,137.39,137.33,0.59612113]
[1767899821928,12.14158282,137.38,137.31,7.15612113]
[1767899822131,6.5571,137.38,137.31,7.15612113]
[1767899822929,12.14326046,137.37,137.31,0.59612113]
[1767899823130,5.58563638,137.36,137.31,0.59612113]
[1767899823326,6.5575,137.37,137.31,0.59612113]
[1767899823532,5.58686695,137.36,137.31,0.59612113]
[1767899823723,6.5575,137.37,137.31,0.59612113]
[1767899823926,8.41071566,137.36,137.24,0.30964754]
[1767899824119,5.5868687,137.35,137.24,0.30964754]
[1767899824424,5.5868687,137.34,137.24,0.30964754]
[1767899824627,5.5868687,137.33,137.24,0.30964754]
[1767899824824,104.84104696,137.36,137.24,0.30964754]
[1767899825025,91.66718263,137.35,137.24,0.30964754]
[1767899825226,5.58718263,137.34,137.24,0.30964754]
[1767899825426,5.58718263,137.33,137.24,0.30964754]
[1767899825627,12.14708263,137.32,137.25,6.5628]
[1767899825827,6.5599,137.32,137.25,6.5628]
[1767899826436,6.5604,137.31,137.24,6.87334754]
[1767899826638,104.85654696,137.34,137.21,0.3228517]
[1767899826833,2.82384696,137.32,137.21,0.3228517]
[1767899827137,91.66416568,137.31,137.21,0.3228517]
[1767899827333,86.08,137.31,137.21,0.3228517]
[1767899827536,8.40629012,137.3,137.18,86.4028517]
[1767899827731,5.58244316,137.29,137.18,0.3228517]
[1767899827937,91.66244316,137.28,137.18,0.3228517]
[1767899828238,86.08,137.28,137.18,0.3228517]
[1767899829038,88.90384696,137.28,137.18,0.3228517]
[1767899829339,88.90384696,137.28,137.19,0.3228517]
[1767899829340,86.08,137.28,137.19,0.3228517]
[1767899829737,9.38444696,137.31,137.21,0.3228517]
[1767899829938,91.65966344,137.3,137.21,0.3228517]
[1767899830139,5.57966344,137.29,137.21,0.3228517]
[1767899830434,86.08,137.3,137.21,0.3228517]
[1767899830637,7.39382789,137.29,137.21,0.3228517]
[1767899830835,1.8144941,137.29,137.21,0.3228517]
[1767899831142,1.8144941,137.29,137.22,6.5645]
[1767899831940,6.5602,137.32,137.21,102.1217]
[1767899832243,93.49344998,137.31,137.21,102.1217]
[1767899832445,87.9144941,137.31,137.21,103.9361941]
[1767899832843,1.8144941,137.31,137.25,6.5631]
[1767899833443,86.1,137.32,137.25,6.8859517]
[1767899833940,8.3739941,137.33,137.25,6.8859517]
[1767899834143,94.4732941,137.35,137.27,0.3228517]
[1767899834538,8.3732941,137.35,137.27,0.3228517]
[1767899835445,8.3732941,137.35,137.28,0.3228517]
[1767899835840,1.8144941,137.33,137.26,0.3228517]
[1767899836442,1.8144941,137.33,137.26,6.8854517]
[1767899836639,1.8144941,137.33,137.23,0.3228517]
[1767899836843,1.8144941,137.31,137.23,0.3228517]
[1767899837652,1.8144941,137.31,137.24,0.3228517]
[1767899837946,1.8144941,137.33,137.24,0.3228517]
[1767899838148,1.8144941,137.34,137.24,0.3228517]
[1767899839244,8.3728941,137.36,137.27,0.3228517]
[1767899839450,94.4728941,137.36,137.27,0.3228517]
[1767899839648,1.8144941,137.36,137.27,0.3228517]
[1767899839852,87.9144941,137.36,137.27,0.3228517]
[1767899840055,1.8144941,137.36,137.27,0.3228517]
[1767899840549,1.8144941,137.34,137.27,0.3228517]
[1767899841248,6.5595,137.33,137.24,0.3228517]
[1767899841556,1.8144941,137.32,137.24,0.3228517]
[1767899841955,6.5595,137.33,137.24,0.3228517]
[1767899841956,1.8144941,137.34,137.26,6.8855517]
[1767899842253,1.8144941,137.34,137.26,0.3228517]
[1767899843155,1.8144941,137.34,137.26,6.8852517]
[1767899843551,188.1178,137.36,137.25,6.5631]
[1767899843752,8.3740941,137.33,137.25,0.3228517]
[1767899844354,6.56,137.32,137.25,0.3228517]
[1767899845656,6.56,137.32,137.25,6.8859517]
[1767899846563,1.8144941,137.33,137.26,6.5625]
[1767899847258,87.9144941,137.35,137.27,6.8848517]
[1767899847857,86.1,137.35,137.27,6.8848517]
[1767899848052,87.9144941,137.35,137.27,6.8848517]
[1767899848451,86.1,137.35,137.27,6.8848517]
[1767899848653,6.559,137.34,137.27,6.8848517]
[1767899849359,86.1,137.35,137.28,6.5617]
[1767899849552,6.5584,137.36,137.28,0.3228517]
[1767899850155,86.1,137.37,137.29,0.3228517]
[1767899850555,86.1,137.39,137.29,0.3228517]
[1767899850755,5.18399529,137.38,137.29,0.3228517]
[1767899850951,86.1,137.39,137.29,0.3228517]
[1767899851151,6.5582,137.36,137.29,0.3228517]
[1767899851355,6.5582,137.36,137.26,188.185]
[1767899851356,6.5582,137.36,137.27,0.3228517]
[1767899851568,86.1,137.39,137.3,0.3228517]
[1767899852063,92.6567,137.39,137.32,6.5597]
[1767899853371,92.6567,137.39,137.33,6.5594]
[1767899853372,86.1,137.39,137.33,6.5594]
[1767899853869,86.1,137.39,137.34,6.5589]
[1767899854058,106.80546583,137.45,137.34,6.5589]
[1767899854059,86.1,137.43,137.34,6.5589]
[1767899854264,5.18955511,137.42,137.34,6.5589]
[1767899854462,6.5556,137.41,137.35,6.5584]
[1767899854667,86.1,137.43,137.35,6.5584]
[1767899854872,106.80546583,137.45,137.35,6.5584]
[1767899855075,91.29131355,137.44,137.36,6.5576]
[1767899855274,86.1,137.44,137.36,6.5576]
[1767899855671,92.6544,137.44,137.37,6.5573]
[1767899856672,86.1,137.44,137.37,6.5573]
[1767899857475,92.6543,137.44,137.37,6.5573]
[1767899858875,6.5543,137.44,137.37,6.5573]
[1767899860372,6.5543,137.44,137.34,102.0239]
[1767899860373,92.6336,137.46,137.38,6.87350736]
[1767899860568,86.08,137.46,137.38,0.31670736]
[1767899860766,6.5547,137.43,137.36,6.5579]
[1767899861864,101.9586,137.44,137.32,0.31670736]
[1767899862270,86.06,137.43,137.32,0.31670736]
[1767899863576,6.5557,137.41,137.34,6.5588]
[1767899864681,92.615,137.43,137.35,6.5584]
[1767899864871,86.06,137.43,137.35,6.5584]
[1767899865683,6.5552,137.42,137.35,6.5584]
[1767899867578,101.9779,137.41,137.3,0.31670736]
[1767899867787,102.0068,137.37,137.25,0.31670736]
[1767899868084,4.85586583,137.36,137.25,0.31670736]
[1767899868272,11.41426583,137.36,137.29,6.5612]
[1767899869181,6.5584,137.36,137.29,6.5612]
[1767899870575,1.81282774,137.35,137.29,6.5612]
[1767899871382,6.5573,137.38,137.31,6.5603]
[1767899871681,1.81282774,137.37,137.31,6.5603]
[1767899873880,1.81282774,137.37,137.32,6.5599]
[1767899876484,92.6366,137.39,137.32,6.5599]
[1767899880988,6.557,137.38,137.31,0.31670736]
[1767899882678,6.557,137.38,137.31,6.87710736]
[1767899882880,86.08,137.39,137.31,0.31670736]
[1767899884078,6.5556,137.41,137.34,0.30753031]
[1767899884378,86.08,137.42,137.34,0.30753031]
[1767899884574,6.5557,137.41,137.34,0.30753031]
[1767899884775,0.04782356,137.39,137.34,0.30753031]
[1767899884978,4.85398246,137.44,137.34,0.30753031]
[1767899885384,86.08,137.45,137.35,0.30753031]
[1767899886486,86.08,137.45,137.37,6.86649828]
[1767899887684,6.5542,137.44,137.37,6.86649828]
[1767899888383,86.08,137.45,137.38,6.557]
[1767899889279,0.05304533,137.43,137.4,0.05218861]
[1767899889480,86.06,137.48,137.4,0.05218861]
[1767899889684,106.76658246,137.5,137.4,0.05218861]
[1767899889978,187.9801,137.49,137.4,0.05218861]
[1767899890180,6.5526,137.48,137.4,6.86499828]
[1767899890991,6.5526,137.48,137.43,0.05288156]
[1767899891491,86.06,137.49,137.43,0.05288156]
[1767899892686,92.612,137.49,137.43,0.05288156]
[1767899900400,0.05030745,137.47,137.43,0.05288156]
[1767899909208,6.5508,137.51,137.43,0.36197984]
[1767899909597,6.5508,137.51,137.43,0.30909828]
[1767899910205,86.02,137.53,137.45,6.5534]
[1767899910407,86.02,137.53,137.45,6.86249828]
[1767899910606,86.02,137.53,137.46,0.04871234]
[1767899911704,6.5505,137.52,137.46,0.04871234]
[1767899911906,86.02,137.53,137.46,0.35781062]
[1767899912103,88.84720055,137.56,137.46,0.35781062]
[1767899912507,88.84720055,137.56,137.46,0.30909828]
[1767899913007,86.02,137.56,137.5,0.047669]
[1767899914106,6.5494,137.54,137.5,0.047669]
[1767899914700,92.5689,137.56,137.5,0.047669]
[1767899915515,6.549,137.55,137.5,0.047669]
[1767899916414,6.55,137.53,137.5,0.047669]
[1767899916711,88.82720055,137.52,137.4,0.29946352]
[1767899916913,2.82720055,137.5,137.42,6.555]
[1767899917906,2.82720055,137.5,137.45,0.04922227]
[1767899918109,2.82720055,137.5,137.41,0.29946352]
[1767899918110,6.5518,137.49,137.41,0.29946352]
[1767899918814,6.5518,137.49,137.41,6.85496352]
[1767899919415,6.5518,137.49,137.44,0.04787786]
[1767899919617,9.37970055,137.48,137.39,0.29946352]
[1767899919819,0.04690635,137.46,137.39,0.29946352]
[1767899920714,0.04690635,137.46,137.4,6.5559]
[1767899921115,9.4274069,137.46,137.39,0.29946352]
[1767899921418,2.8741069,137.46,137.39,0.29946352]
[1767899922614,9.4274069,137.46,137.39,0.29946352]
[1767899923216,2.82720055,137.44,137.36,6.85706352]
[1767899924020,0.05005914,137.41,137.37,0.29946352]
[1767899924219,86.0,137.45,137.38,0.29946352]
[1767899924415,86.0,137.45,137.34,102.0254]
[1767899924416,86.0,137.45,137.36,0.29946352]
[1767899925330,6.5543,137.44,137.36,6.85716352]
[1767899925719,9.38150055,137.44,137.36,6.85716352]
[1767899926024,9.38150055,137.44,137.36,0.29946352]
[1767899926622,6.5549,137.43,137.34,0.29946352]
[1767899927127,6.5549,137.43,137.35,6.85776352]
[1767899927733,2.82720055,137.44,137.36,6.85736352]
[1767899927924,92.554,137.45,137.37,0.29946352]
[1767899929635,92.554,137.45,137.37,6.85686352]
[1767899930833,92.554,137.45,137.37,0.29946352]
[1767899931028,2.82720055,137.44,137.34,0.29946352]
[1767899931233,2.82720055,137.42,137.34,0.29946352]
[1767899931936,9.38240055,137.42,137.34,6.85816352]
[1767899932439,2.82720055,137.42,137.35,0.29946352]
[1767899933431,9.38270055,137.42,137.33,0.29946352]
[1767899934529,9.38270055,137.42,137.34,6.85826352]
[1767899934732,2.82720055,137.42,137.34,0.29946352]
[1767899935537,88.86720055,137.44,137.34,0.29946352]
[1767899936639,6.5552,137.42,137.35,6.5583]
[1767899937136,6.5552,137.42,137.35,6.85776352]
[1767899938342,6.5557,137.41,137.32,0.29946352]
[1767899939545,6.5557,137.41,137.34,6.85836352]
[1767899940041,88.86720055,137.44,137.34,0.29946352]
[1767899941543,6.5552,137.42,137.35,6.5584]
[1767899942037,6.5556,137.41,137.35,6.5584]
[1767899945332,104.79930055,137.42,137.31,6.56]
[1767899945535,2.82720055,137.4,137.3,0.30419167]
[1767899945739,2.82720055,137.38,137.3,0.30419167]
[1767899945939,2.82720055,137.38,137.27,0.30419167]
[1767899946140,88.86720055,137.38,137.27,0.30419167]
[1767899946338,6.5591,137.34,137.27,6.86639167]
[1767899946849,6.558,137.36,137.29,6.5613]
[1767899948441,86.04,137.37,137.3,6.5607]
[1767899948842,86.04,137.37,137.29,0.30419167]
[1767899949043,6.558,137.36,137.29,6.86549167]
[1767899950538,8.3706634,137.36,137.29,6.86549167]
[1767899950737,8.3706634,137.36,137.3,6.5608]
[1767899950738,1.8126634,137.36,137.3,6.5608]
[1767899951142,1.8126634,137.36,137.29,6.86549167]
[1767899952552,8.3706634,137.36,137.29,6.86549167]
[1767899952948,1.8126634,137.36,137.3,6.5608]
[1767899953141,1.8126634,137.36,137.29,0.30419167]
[1767899953746,92.5976,137.37,137.3,6.5608]
[1767899953947,1.8126634,137.37,137.29,0.30419167]
[1767899954448,101.9773,137.41,137.29,0.30419167]
[1767899954647,87.8926634,137.4,137.32,0.30419167]
[1767899955957,1.8126634,137.38,137.32,0.30419167]
[1767899956661,8.3697634,137.38,137.32,0.30419167]
[1767899957454,86.08,137.4,137.32,0.30419167]
[1767899957455,1.8126634,137.4,137.32,0.30419167]
[1767899957650,1.8126634,137.42,137.33,0.30419167]